[Event "*** Titled Tuesday Blitz"]
[Site "Chess.com"]
[Date "2020.12.29"]
[Round "11"]
[White "Spriteball"]
[Black "MasterKroket"]
[Result "0-1"]
[WhiteElo "2328"]
[BlackElo "2463"]
[TimeControl "180+1"]
[EndTime "12:05:36 PST"]
[Termination "MasterKroket won on time"]

1. c4 {[%clk 0:03:00.9]} 1... e6 {[%clk 0:03:00]} 2. g3 {[%clk 0:03:00.3]} 2...
Nf6 {[%clk 0:03:00]} 3. Bg2 {[%clk 0:03:00.6]} 3... d5 {[%clk 0:02:59.9]} 4. Nf3
{[%clk 0:03:00.8]} 4... Be7 {[%clk 0:02:59.3]} 5. O-O {[%clk 0:03:00.9]} 5...
O-O {[%clk 0:02:59.8]} 6. d4 {[%clk 0:03:00.2]} 6... dxc4 {[%clk 0:02:59.9]} 7.
Na3 {[%clk 0:02:56.9]} 7... c5 {[%clk 0:02:58.4]} 8. dxc5 {[%clk 0:02:49]} 8...
Bxc5 {[%clk 0:02:58]} 9. Nxc4 {[%clk 0:02:47.9]} 9... Nc6 {[%clk 0:02:57.8]} 10.
Bf4 {[%clk 0:02:38.3]} 10... Nd5 {[%clk 0:02:55.9]} 11. Bg5 {[%clk 0:02:35.1]}
11... f6 {[%clk 0:02:50.9]} 12. Bd2 {[%clk 0:02:34]} 12... Qe7 {[%clk
0:02:48.4]} 13. e4 {[%clk 0:02:29.7]} 13... Nb6 {[%clk 0:02:47.8]} 14. Nxb6
{[%clk 0:02:27.5]} 14... axb6 {[%clk 0:02:41.1]} 15. Qe2 {[%clk 0:02:23.4]}
15... e5 {[%clk 0:02:40.8]} 16. Rfd1 {[%clk 0:02:14.3]} 16... Be6 {[%clk
0:02:39.9]} 17. a3 {[%clk 0:02:11.5]} 17... Ra4 {[%clk 0:02:33.5]} 18. Bc3
{[%clk 0:01:59.7]} 18... Bb3 {[%clk 0:02:26.2]} 19. Re1 {[%clk 0:01:47]} 19...
Rd8 {[%clk 0:02:15.7]} 20. Qb5 {[%clk 0:01:37.8]} 20... Qe6 {[%clk 0:01:59.5]}
21. Nd2 {[%clk 0:01:34.2]} 21... Rxd2 {[%clk 0:01:59.6]} 22. Bxd2 {[%clk
0:01:33.7]} 22... Nd4 {[%clk 0:02:00.2]} 23. Qd3 {[%clk 0:01:24.3]} 23... Bc2
{[%clk 0:01:48.3]} 24. Qc3 {[%clk 0:01:07.8]} 24... Rc4 {[%clk 0:01:43.4]} 25.
Qe3 {[%clk 0:01:04.7]} 25... Nb3 {[%clk 0:01:40.4]} 26. Qe2 {[%clk 0:00:58.7]}
26... Nd4 {[%clk 0:01:17.6]} 27. Qe3 {[%clk 0:00:48.6]} 27... Nb3 {[%clk
0:01:07.9]} 28. Qe2 {[%clk 0:00:47.6]} 28... Nxa1 {[%clk 0:00:58.4]} 29. Rxa1
{[%clk 0:00:48.5]} 29... Bb3 {[%clk 0:00:49.9]} 30. Bc3 {[%clk 0:00:32]} 30...
Bd4 {[%clk 0:00:48.8]} 31. Bxd4 {[%clk 0:00:25]} 31... exd4 {[%clk 0:00:48.8]}
32. Qd2 {[%clk 0:00:18.1]} 32... Bc2 {[%clk 0:00:40.2]} 33. Qf4 {[%clk
0:00:16.5]} 33... Qe5 {[%clk 0:00:36.4]} 34. Rc1 {[%clk 0:00:13.5]} 34... Qxf4
{[%clk 0:00:34.4]} 35. gxf4 {[%clk 0:00:13.1]} 35... d3 {[%clk 0:00:35.1]} 36.
Rf1 {[%clk 0:00:06.8]} 36... d2 {[%clk 0:00:31.1]} 37. Bf3 {[%clk 0:00:07]}
37... Bxe4 {[%clk 0:00:26.6]} 38. Bxe4 {[%clk 0:00:06.2]} 38... Rxe4 {[%clk
0:00:26.5]} 39. Rd1 {[%clk 0:00:02.1]} 39... Re1+ {[%clk 0:00:26.7]} 0-1

[Event "*** Titled Tuesday Blitz"]
[Site "Chess.com"]
[Date "2020.12.29"]
[Round "11"]
[White "Iskusnyh"]
[Black "Oleksandr_Bortnyk"]
[Result "1-0"]
[WhiteElo "2580"]
[BlackElo "2878"]
[TimeControl "180+1"]
[EndTime "12:05:40 PST"]
[Termination "Iskusnyh won by checkmate"]

1. d4 {[%clk 0:03:00.8]} 1... Nf6 {[%clk 0:02:47.3]} 2. c4 {[%clk 0:03:00.5]}
2... b5 {[%clk 0:02:43.3]} 3. cxb5 {[%clk 0:02:38.4]} 3... a6 {[%clk 0:02:42.8]}
4. bxa6 {[%clk 0:02:36.7]} 4... Bxa6 {[%clk 0:02:43.7]} 5. Nc3 {[%clk
0:02:36.3]} 5... d5 {[%clk 0:02:40.4]} 6. Bg5 {[%clk 0:02:32.7]} 6... e6 {[%clk
0:02:38.3]} 7. Nf3 {[%clk 0:02:23.1]} 7... h6 {[%clk 0:02:37.1]} 8. Bxf6 {[%clk
0:02:18]} 8... Qxf6 {[%clk 0:02:38]} 9. Qa4+ {[%clk 0:02:15.2]} 9... c6 {[%clk
0:02:36.3]} 10. e3 {[%clk 0:02:13.6]} 10... Bd6 {[%clk 0:02:30.7]} 11. Bxa6
{[%clk 0:01:58.6]} 11... Rxa6 {[%clk 0:02:31.6]} 12. Qc2 {[%clk 0:01:58.3]}
12... g5 {[%clk 0:02:26.8]} 13. a3 {[%clk 0:01:43.3]} 13... g4 {[%clk
0:02:26.2]} 14. Nd2 {[%clk 0:01:42.3]} 14... h5 {[%clk 0:02:22.8]} 15. h3 {[%clk
0:01:34]} 15... g3 {[%clk 0:02:21.1]} 16. f4 {[%clk 0:01:33.5]} 16... Nd7 {[%clk
0:02:16.1]} 17. O-O {[%clk 0:01:30.5]} 17... c5 {[%clk 0:02:13.3]} 18. Nb5
{[%clk 0:01:08.5]} 18... Qe7 {[%clk 0:01:50.7]} 19. dxc5 {[%clk 0:01:02.7]}
19... Nxc5 {[%clk 0:01:17.4]} 20. b4 {[%clk 0:01:02.1]} 20... O-O {[%clk
0:01:16.1]} 21. Nxd6 {[%clk 0:01:00.2]} 21... Rxd6 {[%clk 0:01:15.3]} 22. Qxc5
{[%clk 0:00:59.2]} 22... Rfd8 {[%clk 0:01:13.8]} 23. Nf3 {[%clk 0:00:58.6]}
23... Qb7 {[%clk 0:01:02.2]} 24. Rac1 {[%clk 0:00:57.4]} 24... Qa6 {[%clk
0:00:58.9]} 25. Qc3 {[%clk 0:00:55.3]} 25... Qe2 {[%clk 0:00:51.7]} 26. Qe1
{[%clk 0:00:54.6]} 26... Qxe1 {[%clk 0:00:51.4]} 27. Rfxe1 {[%clk 0:00:54.3]}
27... Ra8 {[%clk 0:00:52.3]} 28. Rc3 {[%clk 0:00:53.6]} 28... Rb6 {[%clk
0:00:53.2]} 29. Rec1 {[%clk 0:00:51.7]} 29... Kg7 {[%clk 0:00:54.1]} 30. Kf1
{[%clk 0:00:51]} 30... Kf6 {[%clk 0:00:54.7]} 31. Ne5 {[%clk 0:00:49.5]} 31...
Rbb8 {[%clk 0:00:55.6]} 32. Nd7+ {[%clk 0:00:48]} 32... Kf5 {[%clk 0:00:56.3]}
33. Nxb8 {[%clk 0:00:47.8]} 33... Rxb8 {[%clk 0:00:57.2]} 34. Ke2 {[%clk
0:00:47.5]} 34... f6 {[%clk 0:00:57.4]} 35. Kf3 {[%clk 0:00:46.4]} 35... h4
{[%clk 0:00:56.6]} 36. Rc5 {[%clk 0:00:45.1]} 36... Ra8 {[%clk 0:00:56.4]} 37.
Ra5 {[%clk 0:00:44.4]} 37... Rb8 {[%clk 0:00:56.4]} 38. e4+ {[%clk 0:00:44.4]}
38... Kg6 {[%clk 0:00:57]} 39. exd5 {[%clk 0:00:44.3]} 39... e5 {[%clk
0:00:57.7]} 40. fxe5 {[%clk 0:00:43.6]} 40... fxe5 {[%clk 0:00:58.6]} 41. Kg4
{[%clk 0:00:43.4]} 41... Rf8 {[%clk 0:00:59.5]} 42. Rc6+ {[%clk 0:00:42.6]}
42... Kg7 {[%clk 0:00:59.4]} 43. Ra7+ {[%clk 0:00:42.7]} 43... Kh8 {[%clk
0:00:59.4]} 44. Rh6+ {[%clk 0:00:42.1]} 44... Kg8 {[%clk 0:00:59.7]} 45. Rxh4
{[%clk 0:00:40.6]} 45... e4 {[%clk 0:01:00.6]} 46. Kxg3 {[%clk 0:00:40.2]} 46...
e3 {[%clk 0:01:01.5]} 47. Rg4+ {[%clk 0:00:40.2]} 47... Kh8 {[%clk 0:01:02.4]}
48. Re4 {[%clk 0:00:40.2]} 48... Rg8+ {[%clk 0:01:02.9]} 49. Kh2 {[%clk
0:00:39.7]} 49... Rd8 {[%clk 0:01:02.6]} 50. Rxe3 {[%clk 0:00:39.1]} 50... Rg8
{[%clk 0:01:03.5]} 51. Re4 {[%clk 0:00:38.7]} 51... Rd8 {[%clk 0:01:03.5]} 52.
d6 {[%clk 0:00:38.6]} 52... Kg8 {[%clk 0:01:03.9]} 53. Rae7 {[%clk 0:00:36.3]}
53... Rxd6 {[%clk 0:01:04.1]} 54. Re8+ {[%clk 0:00:35]} 54... Kf7 {[%clk
0:01:05]} 55. R4e7+ {[%clk 0:00:35.4]} 55... Kf6 {[%clk 0:01:05.2]} 56. Re6+
{[%clk 0:00:36]} 56... Rxe6 {[%clk 0:01:06]} 57. Rxe6+ {[%clk 0:00:35.9]} 57...
Kxe6 {[%clk 0:01:06.9]} 58. h4 {[%clk 0:00:36.4]} 58... Kd5 {[%clk 0:01:07.8]}
59. h5 {[%clk 0:00:36.3]} 59... Ke5 {[%clk 0:01:08.6]} 60. h6 {[%clk 0:00:36.7]}
60... Kf6 {[%clk 0:01:09.5]} 61. g4 {[%clk 0:00:36.5]} 61... Kg6 {[%clk
0:01:10.2]} 62. g5 {[%clk 0:00:36.9]} 62... Kh7 {[%clk 0:01:11.1]} 63. a4 {[%clk
0:00:36.4]} 63... Kg6 {[%clk 0:01:12]} 64. a5 {[%clk 0:00:36.8]} 64... Kh7
{[%clk 0:01:12.9]} 65. a6 {[%clk 0:00:37.2]} 65... Kg6 {[%clk 0:01:13.8]} 66. a7
{[%clk 0:00:37.6]} 66... Kh7 {[%clk 0:01:14.7]} 67. a8=Q {[%clk 0:00:37.7]}
67... Kg6 {[%clk 0:01:15.6]} 68. Qd5 {[%clk 0:00:37.4]} 68... Kh5 {[%clk
0:01:16.5]} 69. h7 {[%clk 0:00:36.6]} 69... Kg6 {[%clk 0:01:17.4]} 70. Qe6+
{[%clk 0:00:35.6]} 70... Kxg5 {[%clk 0:01:14.1]} 71. h8=Q {[%clk 0:00:35.1]}
71... Kf4 {[%clk 0:01:14]} 72. Qf8+ {[%clk 0:00:34.8]} 72... Kg5 {[%clk
0:01:13.7]} 73. Qff6+ {[%clk 0:00:34.4]} 73... Kh5 {[%clk 0:01:14.2]} 74. Qef5#
{[%clk 0:00:32.4]} 1-0

[Event "*** Titled Tuesday Blitz"]
[Site "Chess.com"]
[Date "2020.12.29"]
[Round "11"]
[White "nubair1198"]
[Black "paulrusan"]
[Result "1-0"]
[WhiteElo "2715"]
[BlackElo "2289"]
[TimeControl "180+1"]
[EndTime "12:05:41 PST"]
[Termination "nubair1198 won on time"]

1. c4 {[%clk 0:03:00.9]} 1... Nf6 {[%clk 0:02:59.4]} 2. Nc3 {[%clk 0:03:00.6]}
2... g6 {[%clk 0:02:59.8]} 3. d4 {[%clk 0:03:00.9]} 3... Bg7 {[%clk 0:03:00]} 4.
e4 {[%clk 0:03:01.4]} 4... d6 {[%clk 0:03:00.3]} 5. Nf3 {[%clk 0:03:01.4]} 5...
O-O {[%clk 0:03:00.2]} 6. Be2 {[%clk 0:03:01.9]} 6... Bg4 {[%clk 0:02:58.9]} 7.
O-O {[%clk 0:03:02.1]} 7... Nfd7 {[%clk 0:02:59.1]} 8. Be3 {[%clk 0:03:01.7]}
8... Nc6 {[%clk 0:02:58]} 9. d5 {[%clk 0:02:57.7]} 9... Bxf3 {[%clk 0:02:57.7]}
10. Bxf3 {[%clk 0:02:58.6]} 10... Na5 {[%clk 0:02:54.6]} 11. Be2 {[%clk
0:02:59]} 11... Bxc3 {[%clk 0:02:52.8]} 12. bxc3 {[%clk 0:02:59.9]} 12... e6
{[%clk 0:02:52]} 13. f4 {[%clk 0:02:26.1]} 13... Qe7 {[%clk 0:02:46.9]} 14. Qc2
{[%clk 0:01:51.9]} 14... exd5 {[%clk 0:02:39.5]} 15. cxd5 {[%clk 0:01:52.8]}
15... f5 {[%clk 0:02:35.9]} 16. Rae1 {[%clk 0:01:38.4]} 16... fxe4 {[%clk
0:02:32.6]} 17. Bg4 {[%clk 0:01:35.6]} 17... Nc5 {[%clk 0:02:23.7]} 18. Be6+
{[%clk 0:01:02.6]} 18... Nxe6 {[%clk 0:02:21.9]} 19. Qxe4 {[%clk 0:01:02.8]}
19... Rae8 {[%clk 0:02:17.6]} 20. Bc1 {[%clk 0:00:58]} 20... b5 {[%clk
0:01:18.1]} 21. dxe6 {[%clk 0:00:40.8]} 21... Nc4 {[%clk 0:01:03.3]} 22. a4
{[%clk 0:00:38.7]} 22... a6 {[%clk 0:01:01.5]} 23. axb5 {[%clk 0:00:35.3]} 23...
axb5 {[%clk 0:01:01.7]} 24. g4 {[%clk 0:00:25.9]} 24... Qh4 {[%clk 0:00:50.4]}
25. Qg2 {[%clk 0:00:19.6]} 25... h5 {[%clk 0:00:37.3]} 26. h3 {[%clk 0:00:17.9]}
26... hxg4 {[%clk 0:00:37]} 27. hxg4 {[%clk 0:00:18.8]} 27... Rf6 {[%clk
0:00:27.1]} 28. f5 {[%clk 0:00:15.1]} 28... gxf5 {[%clk 0:00:26.3]} 29. gxf5+
{[%clk 0:00:16]} 29... Kh7 {[%clk 0:00:19.7]} 30. Bg5 {[%clk 0:00:16.3]} 30...
Rg8 {[%clk 0:00:09.4]} 31. Bxh4 {[%clk 0:00:16.4]} 31... Rxg2+ {[%clk
0:00:09.4]} 32. Kxg2 {[%clk 0:00:17.3]} 32... Rf8 {[%clk 0:00:08.9]} 33. e7
{[%clk 0:00:17.3]} 33... Re8 {[%clk 0:00:08.6]} 34. f6 {[%clk 0:00:17.9]} 34...
Ne5 {[%clk 0:00:07.9]} 35. Rxe5 {[%clk 0:00:18.5]} 35... dxe5 {[%clk 0:00:08.1]}
36. f7 {[%clk 0:00:19.2]} 1-0

[Event "*** Titled Tuesday Blitz"]
[Site "Chess.com"]
[Date "2020.12.29"]
[Round "11"]
[White "Nara_Kh"]
[Black "Nadtkins"]
[Result "0-1"]
[WhiteElo "2357"]
[BlackElo "2517"]
[TimeControl "180+1"]
[EndTime "12:05:44 PST"]
[Termination "Nadtkins won by resignation"]

1. e4 {[%clk 0:03:00.9]} 1... d5 {[%clk 0:02:54.6]} 2. exd5 {[%clk 0:03:00.5]}
2... Qxd5 {[%clk 0:02:55.5]} 3. Nc3 {[%clk 0:03:00.3]} 3... Qa5 {[%clk
0:02:54.5]} 4. g3 {[%clk 0:03:00.2]} 4... Nf6 {[%clk 0:02:54.3]} 5. Bg2 {[%clk
0:03:00.5]} 5... c6 {[%clk 0:02:52.9]} 6. Nge2 {[%clk 0:02:59.6]} 6... h5 {[%clk
0:02:48.7]} 7. h3 {[%clk 0:02:56.6]} 7... Bf5 {[%clk 0:02:34.1]} 8. b4 {[%clk
0:02:55.8]} 8... Qc7 {[%clk 0:02:29.6]} 9. b5 {[%clk 0:02:50]} 9... a6 {[%clk
0:02:26.4]} 10. bxa6 {[%clk 0:02:28.8]} 10... Nxa6 {[%clk 0:02:25.2]} 11. O-O
{[%clk 0:02:29.4]} 11... e6 {[%clk 0:02:19.7]} 12. Re1 {[%clk 0:02:25.7]} 12...
Nb4 {[%clk 0:02:15]} 13. Nd4 {[%clk 0:02:22.3]} 13... Bg6 {[%clk 0:02:05.6]} 14.
d3 {[%clk 0:02:19.7]} 14... Bd6 {[%clk 0:01:56.2]} 15. Bg5 {[%clk 0:02:04.8]}
15... Be5 {[%clk 0:01:30.1]} 16. Nce2 {[%clk 0:01:19.6]} 16... c5 {[%clk
0:01:13.8]} 17. Rb1 {[%clk 0:01:14.9]} 17... O-O {[%clk 0:00:59]} 18. Nf3 {[%clk
0:01:04.5]} 18... Rxa2 {[%clk 0:00:48.2]} 19. Nxe5 {[%clk 0:00:49.2]} 19... Qxe5
{[%clk 0:00:49.1]} 20. Bf4 {[%clk 0:00:49.3]} 20... Qf5 {[%clk 0:00:44.1]} 21.
Nc3 {[%clk 0:00:38.3]} 21... Rxc2 {[%clk 0:00:39.3]} 22. Rxb4 {[%clk 0:00:38.4]}
22... cxb4 {[%clk 0:00:38.9]} 23. Qxc2 {[%clk 0:00:37.8]} 23... bxc3 {[%clk
0:00:39.3]} 24. Qxc3 {[%clk 0:00:35.1]} 24... Nd5 {[%clk 0:00:39.2]} 25. Bxd5
{[%clk 0:00:29.3]} 25... Qxd5 {[%clk 0:00:40.1]} 26. Re3 {[%clk 0:00:24.1]}
26... Rd8 {[%clk 0:00:38.7]} 27. Be5 {[%clk 0:00:22.7]} 27... f6 {[%clk
0:00:34.7]} 28. Bxf6 {[%clk 0:00:18.1]} 28... gxf6 {[%clk 0:00:29.6]} 29. Qxf6
{[%clk 0:00:19]} 29... Bf7 {[%clk 0:00:29.9]} 30. Re5 {[%clk 0:00:17.9]} 30...
Qxd3 {[%clk 0:00:25.1]} 31. Rg5+ {[%clk 0:00:17.2]} 31... Kf8 {[%clk 0:00:25.5]}
32. Rg7 {[%clk 0:00:13]} 32... Rd7 {[%clk 0:00:24.5]} 33. Qh6 {[%clk 0:00:12.4]}
33... Ke7 {[%clk 0:00:22.3]} 34. Qxh5 {[%clk 0:00:11.7]} 34... Qd1+ {[%clk
0:00:21]} 35. Qxd1 {[%clk 0:00:11.3]} 35... Rxd1+ {[%clk 0:00:21.9]} 36. Kh2
{[%clk 0:00:11]} 36... Kf6 {[%clk 0:00:22.4]} 37. Rg4 {[%clk 0:00:10.3]} 37...
b5 {[%clk 0:00:22.8]} 38. Rf4+ {[%clk 0:00:10.6]} 38... Ke7 {[%clk 0:00:21.6]}
39. h4 {[%clk 0:00:11.1]} 39... e5 {[%clk 0:00:19.9]} 40. Rf3 {[%clk 0:00:10.9]}
40... Bd5 {[%clk 0:00:19.4]} 0-1

[Event "*** Titled Tuesday Blitz"]
[Site "Chess.com"]
[Date "2020.12.29"]
[Round "11"]
[White "The_Machine04"]
[Black "GelmanAlexander"]
[Result "0-1"]
[WhiteElo "2430"]
[BlackElo "2564"]
[TimeControl "180+1"]
[EndTime "12:05:45 PST"]
[Termination "GelmanAlexander won on time"]

1. d4 {[%clk 0:03:00.9]} 1... Nf6 {[%clk 0:02:59.3]} 2. Bg5 {[%clk 0:03:00.2]}
2... c5 {[%clk 0:02:59]} 3. Bxf6 {[%clk 0:02:57.9]} 3... gxf6 {[%clk 0:02:59.1]}
4. d5 {[%clk 0:02:57.9]} 4... f5 {[%clk 0:02:58.9]} 5. c4 {[%clk 0:02:58]} 5...
Bg7 {[%clk 0:02:51.7]} 6. Qc2 {[%clk 0:02:58]} 6... Qa5+ {[%clk 0:02:45.8]} 7.
Nc3 {[%clk 0:02:57.5]} 7... b5 {[%clk 0:02:45]} 8. cxb5 {[%clk 0:02:50.7]} 8...
a6 {[%clk 0:02:44.9]} 9. e3 {[%clk 0:02:40.4]} 9... O-O {[%clk 0:02:31.5]} 10.
bxa6 {[%clk 0:02:37.4]} 10... Nxa6 {[%clk 0:02:26.6]} 11. Bc4 {[%clk 0:02:23.9]}
11... Nb4 {[%clk 0:02:13.8]} 12. Qd2 {[%clk 0:02:05.6]} 12... Ba6 {[%clk
0:02:04.5]} 13. Bxa6 {[%clk 0:01:56.7]} 13... Qxa6 {[%clk 0:02:05.4]} 14. Nge2
{[%clk 0:01:42.8]} 14... Nd3+ {[%clk 0:02:03.4]} 15. Kf1 {[%clk 0:01:42.8]}
15... Rfb8 {[%clk 0:01:55.8]} 16. b3 {[%clk 0:01:42.5]} 16... Rxb3 {[%clk
0:01:52.4]} 17. Rd1 {[%clk 0:01:32.3]} 17... Rxc3 {[%clk 0:01:43.9]} 18. Nxc3
{[%clk 0:01:31.2]} 18... Nb2+ {[%clk 0:00:58.1]} 19. Ne2 {[%clk 0:01:25.2]}
19... Nxd1 {[%clk 0:00:56]} 20. Qxd1 {[%clk 0:01:26.1]} 20... Qc4 {[%clk
0:00:24.5]} 21. f3 {[%clk 0:01:03.6]} 21... Rxa2 {[%clk 0:00:22.8]} 22. Kf2
{[%clk 0:01:03.9]} 22... Bh6 {[%clk 0:00:18.8]} 23. f4 {[%clk 0:00:58.4]} 23...
Bg7 {[%clk 0:00:16.8]} 24. Re1 {[%clk 0:00:53.1]} 24... Qe4 {[%clk 0:00:14.6]}
25. Qb3 {[%clk 0:00:47.4]} 25... Rb2 {[%clk 0:00:14.7]} 26. Qa3 {[%clk
0:00:41.8]} 26... Bf6 {[%clk 0:00:13.8]} 27. Qxc5 {[%clk 0:00:35.8]} 27... Bh4+
{[%clk 0:00:07.9]} 28. g3 {[%clk 0:00:36]} 28... Bf6 {[%clk 0:00:08.8]} 29. Qc8+
{[%clk 0:00:32]} 29... Kg7 {[%clk 0:00:08.7]} 30. Qxd7 {[%clk 0:00:27.3]} 30...
Bc3 {[%clk 0:00:08.6]} 31. Ra1 {[%clk 0:00:09.3]} 31... Qd3 {[%clk 0:00:05]} 0-1

[Event "*** Titled Tuesday Blitz"]
[Site "Chess.com"]
[Date "2020.12.29"]
[Round "11"]
[White "Fortitudine"]
[Black "cukin84"]
[Result "1-0"]
[WhiteElo "2342"]
[BlackElo "2194"]
[TimeControl "180+1"]
[EndTime "12:05:46 PST"]
[Termination "Fortitudine won on time"]

1. c4 {[%clk 0:03:00.9]} 1... f5 {[%clk 0:02:59.3]} 2. g3 {[%clk 0:02:55.4]}
2... Nf6 {[%clk 0:02:59.2]} 3. Bg2 {[%clk 0:02:54.9]} 3... g6 {[%clk 0:02:59.3]}
4. b3 {[%clk 0:02:55]} 4... Bg7 {[%clk 0:02:59.5]} 5. Bb2 {[%clk 0:02:55.4]}
5... d6 {[%clk 0:02:58.6]} 6. e3 {[%clk 0:02:54.9]} 6... e5 {[%clk 0:02:58.6]}
7. Ne2 {[%clk 0:02:54.4]} 7... O-O {[%clk 0:02:58.1]} 8. O-O {[%clk 0:02:54.5]}
8... Nc6 {[%clk 0:02:58.3]} 9. d3 {[%clk 0:02:53.5]} 9... Qe8 {[%clk 0:02:57.6]}
10. Nbc3 {[%clk 0:02:45.6]} 10... Kh8 {[%clk 0:02:56.5]} 11. a3 {[%clk
0:02:39.7]} 11... a6 {[%clk 0:02:55.7]} 12. b4 {[%clk 0:02:39.4]} 12... Be6
{[%clk 0:02:47.8]} 13. Nd5 {[%clk 0:02:26]} 13... Qd8 {[%clk 0:02:31.7]} 14.
Nxf6 {[%clk 0:02:19]} 14... Bxf6 {[%clk 0:02:30.8]} 15. Rc1 {[%clk 0:02:16.8]}
15... g5 {[%clk 0:02:16.4]} 16. d4 {[%clk 0:01:41.9]} 16... e4 {[%clk
0:02:03.7]} 17. Qc2 {[%clk 0:01:38.6]} 17... Ne7 {[%clk 0:02:01.5]} 18. d5
{[%clk 0:01:37.9]} 18... Bd7 {[%clk 0:01:57.5]} 19. Nd4 {[%clk 0:01:26.5]} 19...
Ng6 {[%clk 0:01:53.4]} 20. f3 {[%clk 0:01:24.2]} 20... exf3 {[%clk 0:01:45.7]}
21. Bxf3 {[%clk 0:01:23.1]} 21... Bg7 {[%clk 0:01:33.5]} 22. Bg2 {[%clk
0:01:15.2]} 22... Qe7 {[%clk 0:01:31.4]} 23. Rce1 {[%clk 0:01:14.4]} 23... Rae8
{[%clk 0:01:01.7]} 24. Nxf5 {[%clk 0:00:57]} 24... Bxf5 {[%clk 0:01:00.7]} 25.
Bxg7+ {[%clk 0:00:54.2]} 25... Qxg7 {[%clk 0:01:00.2]} 26. Rxf5 {[%clk
0:00:54.2]} 26... Ne5 {[%clk 0:00:46.2]} 27. Ref1 {[%clk 0:00:41.1]} 27... Rg8
{[%clk 0:00:38.1]} 28. h3 {[%clk 0:00:35.8]} 28... Qh6 {[%clk 0:00:21.7]} 29.
Qc3 {[%clk 0:00:25.4]} 29... g4 {[%clk 0:00:17.6]} 30. h4 {[%clk 0:00:25.3]}
30... Qg7 {[%clk 0:00:11.1]} 31. Qd4 {[%clk 0:00:20.9]} 31... Re7 {[%clk
0:00:09.6]} 32. Rg5 {[%clk 0:00:18.8]} 32... Qh6 {[%clk 0:00:08]} 33. Rxg8+
{[%clk 0:00:19.1]} 33... Kxg8 {[%clk 0:00:07.6]} 34. Rf5 {[%clk 0:00:19.4]}
34... Ng6 {[%clk 0:00:03.5]} 35. Rg5 {[%clk 0:00:18.5]} 35... Re5 {[%clk
0:00:03]} 36. Qxg4 {[%clk 0:00:18.4]} 36... Kh8 {[%clk 0:00:01.5]} 37. Qc8+
{[%clk 0:00:17.4]} 1-0

[Event "*** Titled Tuesday Blitz"]
[Site "Chess.com"]
[Date "2020.12.29"]
[Round "11"]
[White "grandcoach"]
[Black "juli2512"]
[Result "0-1"]
[WhiteElo "2119"]
[BlackElo "2127"]
[TimeControl "180+1"]
[EndTime "12:05:48 PST"]
[Termination "juli2512 won on time"]

1. e4 {[%clk 0:03:00.9]} 1... c5 {[%clk 0:02:53.6]} 2. b4 {[%clk 0:02:59.5]}
2... cxb4 {[%clk 0:02:51.9]} 3. a3 {[%clk 0:02:59.1]} 3... b3 {[%clk 0:02:51.2]}
4. cxb3 {[%clk 0:02:58.6]} 4... d5 {[%clk 0:02:51.7]} 5. e5 {[%clk 0:02:52.5]}
5... Nc6 {[%clk 0:02:50.8]} 6. d4 {[%clk 0:02:51.3]} 6... g6 {[%clk 0:02:47.1]}
7. Nf3 {[%clk 0:02:40.6]} 7... Bg7 {[%clk 0:02:47.4]} 8. h3 {[%clk 0:02:37.4]}
8... f6 {[%clk 0:02:46]} 9. Bb2 {[%clk 0:02:34.1]} 9... Nh6 {[%clk 0:02:44.7]}
10. Bd3 {[%clk 0:02:28.7]} 10... O-O {[%clk 0:02:40.4]} 11. O-O {[%clk
0:02:25.4]} 11... Be6 {[%clk 0:02:33.3]} 12. b4 {[%clk 0:02:21.2]} 12... a6
{[%clk 0:02:32.5]} 13. Nbd2 {[%clk 0:02:16.5]} 13... Bf7 {[%clk 0:02:27.5]} 14.
Nb3 {[%clk 0:02:14.9]} 14... fxe5 {[%clk 0:02:07.4]} 15. dxe5 {[%clk 0:02:12.1]}
15... d4 {[%clk 0:02:02]} 16. Nc5 {[%clk 0:02:08.4]} 16... Nxe5 {[%clk
0:01:53.8]} 17. Nxe5 {[%clk 0:02:05.2]} 17... Bxe5 {[%clk 0:01:52.8]} 18. Nxb7
{[%clk 0:01:53.1]} 18... Qd5 {[%clk 0:01:44]} 19. Nc5 {[%clk 0:01:51.5]} 19...
Ra7 {[%clk 0:01:41.8]} 20. Be4 {[%clk 0:01:45.7]} 20... Qd6 {[%clk 0:01:40.9]}
21. Qd2 {[%clk 0:01:24.2]} 21... Bg7 {[%clk 0:01:37.3]} 22. Rad1 {[%clk
0:01:11.1]} 22... Bc4 {[%clk 0:01:13.2]} 23. Rfe1 {[%clk 0:01:07.5]} 23... Rd8
{[%clk 0:00:58.7]} 24. Qg5 {[%clk 0:00:55.1]} 24... Nf7 {[%clk 0:00:54.3]} 25.
Qc1 {[%clk 0:00:38.5]} 25... Bb5 {[%clk 0:00:43.4]} 26. Nb7 {[%clk 0:00:36.9]}
26... Rxb7 {[%clk 0:00:34.8]} 27. Bxb7 {[%clk 0:00:37.8]} 27... e5 {[%clk
0:00:27.7]} 28. Qc5 {[%clk 0:00:35.3]} 28... Qf6 {[%clk 0:00:21.3]} 29. Bc1
{[%clk 0:00:20.8]} 29... Rf8 {[%clk 0:00:17]} 30. f3 {[%clk 0:00:19.3]} 30...
Nd6 {[%clk 0:00:16.2]} 31. Bd5+ {[%clk 0:00:16.4]} 31... Kh8 {[%clk 0:00:16.2]}
32. Bb3 {[%clk 0:00:10.7]} 32... Nf5 {[%clk 0:00:15.5]} 33. a4 {[%clk
0:00:09.9]} 33... Bd7 {[%clk 0:00:14.7]} 34. Bd5 {[%clk 0:00:05.2]} 34... Nh4
{[%clk 0:00:13.8]} 35. Be4 {[%clk 0:00:04.7]} 35... Bf5 {[%clk 0:00:11.7]} 36.
Bxf5 {[%clk 0:00:03.9]} 36... Qxf5 {[%clk 0:00:12]} 0-1